[Event "Titled Tuesday Blitz February 28 Early 2023"]
[White "Tsyhanchuk, Stanislav"]
[Black "Kalajzic, Ivan"]
[WhiteFideId "13505130"]
[BlackFideId "14506378"]
[WhiteElo "2173"]
[BlackElo "2203"]
[Result "0-1"]
[Round "07"]
[TimeControl "180+2"]
[Date "2023.02.28"]
[WhiteClock "0:00:37"]
[BlackClock "0:00:08"]

1. c4 {[%clk 0:03:00]}  Nc6 {[%clk 0:02:59]} 2. Nc3 {[%clk 0:03:01]}  e5 {[%clk 0:02:59]} 3. g3 {[%clk 0:03:00]}  Bc5 {[%clk 0:02:59]} 4. Bg2 {[%clk 0:03:00]}  d6 {[%clk 0:02:59]} 5. e3 {[%clk 0:03:01]}  Bf5 {[%clk 0:02:59]} 6. Nge2 {[%clk 0:02:58]}  Nb4 {[%clk 0:02:58]} 7. e4 {[%clk 0:02:33]}  Nd3+ {[%clk 0:02:54]} 8. Kf1 {[%clk 0:02:31]}  Nxf2 {[%clk 0:02:54]} 9. Qc2 {[%clk 0:02:24]}  Bd7 {[%clk 0:02:45]} 10. b4 {[%clk 0:02:20]}  Bb6 {[%clk 0:02:17]} 11. Nd5 {[%clk 0:02:11]}  Nxh1 {[%clk 0:02:07]} 12. Nxb6 {[%clk 0:02:07]}  axb6 {[%clk 0:02:05]} 13. Bxh1 {[%clk 0:02:07]}  Bh3+ {[%clk 0:01:58]} 14. Bg2 {[%clk 0:01:54]}  Qf6+ {[%clk 0:01:56]} 15. Kg1 {[%clk 0:01:53]}  Bxg2 {[%clk 0:01:55]} 16. Kxg2 {[%clk 0:01:54]}  Ne7 {[%clk 0:01:51]} 17. d3 {[%clk 0:01:50]}  O-O {[%clk 0:01:43]} 18. a4 {[%clk 0:01:50]}  Qe6 {[%clk 0:01:43]} 19. d4 {[%clk 0:01:34]}  f5 {[%clk 0:01:39]} 20. d5 {[%clk 0:01:32]}  Qg6 {[%clk 0:01:39]} 21. exf5 {[%clk 0:01:25]}  Nxf5 {[%clk 0:01:37]} 22. Qe4 {[%clk 0:00:57]}  Nd4 {[%clk 0:01:14]} 23. Qxg6 {[%clk 0:00:56]}  hxg6 {[%clk 0:01:15]} 24. Nxd4 {[%clk 0:00:56]}  exd4 {[%clk 0:01:15]} 25. Bf4 {[%clk 0:00:55]}  Rae8 {[%clk 0:01:01]} 26. Ra2 {[%clk 0:00:48]}  d3 {[%clk 0:00:57]} 27. h4 {[%clk 0:00:29]}  Re2+ {[%clk 0:00:52]} 28. Rxe2 {[%clk 0:00:29]}  dxe2 {[%clk 0:00:53]} 29. Kf2 {[%clk 0:00:30]}  Re8 {[%clk 0:00:49]} 30. Ke1 {[%clk 0:00:30]}  Ra8 {[%clk 0:00:46]} 31. Kxe2 {[%clk 0:00:29]}  Rxa4 {[%clk 0:00:44]} 32. Bd2 {[%clk 0:00:29]}  Ra3 {[%clk 0:00:39]} 33. Bf4 {[%clk 0:00:20]}  Rc3 {[%clk 0:00:35]} 34. c5 {[%clk 0:00:08]}  bxc5 {[%clk 0:00:35]} 35. b5 {[%clk 0:00:06]}  Rb3 {[%clk 0:00:34]} 36. b6 {[%clk 0:00:07]}  Rxb6 {[%clk 0:00:33]} 37. Kd3 {[%clk 0:00:07]}  Rb4 {[%clk 0:00:33]} 38. Kc3 {[%clk 0:00:08]}  Kf7 {[%clk 0:00:33]} 39. Bg5 {[%clk 0:00:07]}  Rd4 {[%clk 0:00:30]} 40. Be3 {[%clk 0:00:07]}  Rxd5 {[%clk 0:00:29]} 41. Kc4 {[%clk 0:00:08]}  Re5 {[%clk 0:00:28]} 42. Bf4 {[%clk 0:00:09]}  Re4+ {[%clk 0:00:27]} 43. Kd5 {[%clk 0:00:09]}  Rxf4 {[%clk 0:00:27]} 44. gxf4 {[%clk 0:00:09]}  Kf6 {[%clk 0:00:27]} 45. Ke4 {[%clk 0:00:08]}  b5 {[%clk 0:00:26]} 46. Kd5 {[%clk 0:00:07]}  Kf5 {[%clk 0:00:25]} 47. h5 {[%clk 0:00:07]}  gxh5 {[%clk 0:00:25]} 48. Kc6 {[%clk 0:00:08]}  Kxf4 {[%clk 0:00:24]} 49. Kd7 {[%clk 0:00:09]}  g5 {[%clk 0:00:24]} 50. Ke8 {[%clk 0:00:10]}  d5 {[%clk 0:00:24]} 51. Kf8 {[%clk 0:00:11]}  c4 {[%clk 0:00:23]} 52. Kg8 {[%clk 0:00:12]}  d4 {[%clk 0:00:24]} 53. Kg7 {[%clk 0:00:12]}  g4 {[%clk 0:00:24]} 54. Kf8 {[%clk 0:00:13]}  h4 {[%clk 0:00:25]} 55. Ke8 {[%clk 0:00:14]}  c5 {[%clk 0:00:25]} 56. Kd8 {[%clk 0:00:15]}  b4 {[%clk 0:00:25]} 57. Kc8 {[%clk 0:00:16]}  b3 {[%clk 0:00:26]} 58. Kb8 {[%clk 0:00:17]}  c3 {[%clk 0:00:26]} 59. Ka8 {[%clk 0:00:18]}  d3 {[%clk 0:00:26]} 60. Ka7 {[%clk 0:00:19]}  d2 {[%clk 0:00:27]} 61. Kb7 {[%clk 0:00:19]}  c2 {[%clk 0:00:27]} 62. Kc7 {[%clk 0:00:20]}  b2 {[%clk 0:00:28]} 63. Kd7 {[%clk 0:00:21]}  c4 {[%clk 0:00:28]} 64. Ke7 {[%clk 0:00:22]}  c3 {[%clk 0:00:29]} 65. Kf7 {[%clk 0:00:23]}  g3 {[%clk 0:00:29]} 66. Kg7 {[%clk 0:00:24]}  h3 {[%clk 0:00:30]} 67. Kh7 {[%clk 0:00:25]}  h2 {[%clk 0:00:31]} 68. Kh8 {[%clk 0:00:26]}  g2 {[%clk 0:00:31]} 69. Kg8 {[%clk 0:00:27]}  b1=Q {[%clk 0:00:32]} 70. Kf8 {[%clk 0:00:28]}  c1=Q {[%clk 0:00:32]} 71. Ke8 {[%clk 0:00:28]}  c2 {[%clk 0:00:32]} 72. Kd8 {[%clk 0:00:29]}  Qcb2 {[%clk 0:00:32]} 73. Kc8 {[%clk 0:00:30]}  Q2a1 {[%clk 0:00:33]} 74. Kd8 {[%clk 0:00:30]}  c1=Q {[%clk 0:00:33]} 75. Ke8 {[%clk 0:00:31]}  d1=Q {[%clk 0:00:29]} 76. Kf8 {[%clk 0:00:32]}  g1=Q {[%clk 0:00:28]} 77. Kf7 {[%clk 0:00:33]}  h1=Q {[%clk 0:00:26]} 78. Kf8 {[%clk 0:00:34]}  Qde1 {[%clk 0:00:18]} 79. Kf7 {[%clk 0:00:35]}  Kf3 {[%clk 0:00:18]} 80. Kf8 {[%clk 0:00:36]}  Kf2 {[%clk 0:00:18]} 81. Kf7 {[%clk 0:00:37]}  Kf1 {[%clk 0:00:18]} 82. Kf8 {[%clk 0:00:37]}  Qef2+ {[%clk 0:00:08]} 83. Ke7 {[%clk 0:00:37]}  Qhe4+ {[%clk 0:00:08]} 84. Kd7 {[%clk 0:00:37]}  Qcd2+ {[%clk 0:00:07]} 85. Kc8 {[%clk 0:00:38]}  Qbc1+ {[%clk 0:00:08]} 86. Kb8 {[%clk 0:00:37]}  Qab1# {[%clk 0:00:08]} 0-1


[Site "https://www.chess.com"]

[Event "Titled Tuesday Blitz February 28 Early 2023"]
[White "De Souza, Cristiano Gomes"]
[Black "Shubenkova, Veronika"]
[WhiteFideId "2151758"]
[BlackFideId "44124040"]
[WhiteElo "2068"]
[BlackElo "2027"]
[Result "0-1"]
[Round "07"]
[TimeControl "180+2"]
[Date "2023.02.28"]
[WhiteClock "0:00:16"]
[BlackClock "0:01:09"]

1. d4 {[%clk 0:03:00]}  d5 {[%clk 0:02:21]} 2. c4 {[%clk 0:03:00]}  e6 {[%clk 0:02:21]} 3. Nf3 {[%clk 0:02:59]}  Nf6 {[%clk 0:02:22]} 4. Nc3 {[%clk 0:03:00]}  Be7 {[%clk 0:02:21]} 5. Bg5 {[%clk 0:02:58]}  c6 {[%clk 0:02:22]} 6. e3 {[%clk 0:02:58]}  O-O {[%clk 0:02:22]} 7. Rc1 {[%clk 0:02:58]}  Nbd7 {[%clk 0:02:22]} 8. Be2 {[%clk 0:02:57]}  Re8 {[%clk 0:02:23]} 9. O-O {[%clk 0:02:57]}  Bd6 {[%clk 0:02:23]} 10. h3 {[%clk 0:02:49]}  h6 {[%clk 0:02:21]} 11. Bxf6 {[%clk 0:02:49]}  Qxf6 {[%clk 0:02:21]} 12. e4 {[%clk 0:02:48]}  dxe4 {[%clk 0:02:18]} 13. Nxe4 {[%clk 0:02:48]}  Qe7 {[%clk 0:01:54]} 14. Nxd6 {[%clk 0:02:46]}  Qxd6 {[%clk 0:01:54]} 15. Qc2 {[%clk 0:02:45]}  b6 {[%clk 0:01:53]} 16. Rcd1 {[%clk 0:02:43]}  Bb7 {[%clk 0:01:53]} 17. a3 {[%clk 0:02:42]}  Rad8 {[%clk 0:01:52]} 18. Rd2 {[%clk 0:02:42]}  Qc7 {[%clk 0:01:52]} 19. Rfd1 {[%clk 0:02:41]}  c5 {[%clk 0:01:51]} 20. dxc5 {[%clk 0:02:40]}  Nxc5 {[%clk 0:01:51]} 21. Rxd8 {[%clk 0:02:40]}  Rxd8 {[%clk 0:01:51]} 22. Rxd8+ {[%clk 0:02:41]}  Qxd8 {[%clk 0:01:52]} 23. Qd2 {[%clk 0:02:39]}  Qc7 {[%clk 0:01:51]} 24. b4 {[%clk 0:02:38]}  Ne4 {[%clk 0:01:51]} 25. Qd4 {[%clk 0:02:36]}  Nf6 {[%clk 0:01:50]} 26. Ne5 {[%clk 0:02:33]}  a5 {[%clk 0:01:49]} 27. c5 {[%clk 0:02:31]}  axb4 {[%clk 0:01:48]} 28. axb4 {[%clk 0:02:31]}  bxc5 {[%clk 0:01:47]} 29. bxc5 {[%clk 0:02:31]}  Bd5 {[%clk 0:01:47]} 30. Bb5 {[%clk 0:02:25]}  Qa5 {[%clk 0:01:46]} 31. Bf1 {[%clk 0:02:03]}  Qc7 {[%clk 0:01:41]} 32. f4 {[%clk 0:01:58]}  Ne4 {[%clk 0:01:38]} 33. Nd3 {[%clk 0:01:39]}  Ng3 {[%clk 0:01:32]} 34. Qe3 {[%clk 0:01:26]}  Nxf1 {[%clk 0:01:29]} 35. Kxf1 {[%clk 0:01:26]}  Bc4 {[%clk 0:01:30]} 36. Ke2 {[%clk 0:01:24]}  Qc6 {[%clk 0:01:30]} 37. g4 {[%clk 0:01:15]}  Qg2+ {[%clk 0:01:29]} 38. Kd1 {[%clk 0:01:11]}  Qf1+ {[%clk 0:01:28]} 39. Kd2 {[%clk 0:01:10]}  Bxd3 {[%clk 0:01:25]} 40. Qxd3 {[%clk 0:01:09]}  Qf2+ {[%clk 0:01:25]} 41. Kd1 {[%clk 0:00:58]}  Qxc5 {[%clk 0:01:23]} 42. Ke2 {[%clk 0:00:55]}  Qc6 {[%clk 0:01:20]} 43. Kf2 {[%clk 0:00:49]}  Qc5+ {[%clk 0:01:18]} 44. Kg3 {[%clk 0:00:36]}  Qc7 {[%clk 0:01:17]} 45. h4 {[%clk 0:00:33]}  g5 {[%clk 0:01:13]} 46. hxg5 {[%clk 0:00:33]}  hxg5 {[%clk 0:01:12]} 47. Qd4 {[%clk 0:00:30]}  gxf4+ {[%clk 0:01:11]} 48. Qxf4 {[%clk 0:00:31]}  Qxf4+ {[%clk 0:01:11]} 49. Kxf4 {[%clk 0:00:32]}  Kg7 {[%clk 0:01:12]} 50. Kg5 {[%clk 0:00:26]}  f6+ {[%clk 0:01:10]} 51. Kf4 {[%clk 0:00:25]}  Kg6 {[%clk 0:01:10]} 52. Kf3 {[%clk 0:00:21]}  Kg5 {[%clk 0:01:10]} 53. Kg3 {[%clk 0:00:20]}  e5 {[%clk 0:01:10]} 54. Kf3 {[%clk 0:00:17]}  Kh4 {[%clk 0:01:10]} 55. g5 {[%clk 0:00:16]}  Kxg5 {[%clk 0:01:09]} 0-1


[Site "https://www.chess.com"]

[Event "Titled Tuesday Blitz February 28 Early 2023"]
[White "Jesusesmifuerza"]
[Black "Piriflillo"]
[WhiteElo "2013"]
[BlackElo "2328"]
[Result "0-1"]
[Round "07"]
[TimeControl "180+2"]
[Date "2023.02.28"]
[WhiteClock "0:00:12"]
[BlackClock "0:00:41"]

1. d4 {[%clk 0:03:00]}  Nf6 {[%clk 0:02:56]} 2. Bg5 {[%clk 0:03:00]}  d5 {[%clk 0:02:54]} 3. e3 {[%clk 0:03:00]}  c5 {[%clk 0:02:54]} 4. dxc5 {[%clk 0:03:01]}  e6 {[%clk 0:02:51]} 5. b4 {[%clk 0:02:59]}  a5 {[%clk 0:02:50]} 6. c3 {[%clk 0:02:59]}  axb4 {[%clk 0:02:51]} 7. cxb4 {[%clk 0:02:59]}  b6 {[%clk 0:02:51]} 8. Bb5+ {[%clk 0:02:46]}  Bd7 {[%clk 0:02:47]} 9. Bxd7+ {[%clk 0:02:42]}  Qxd7 {[%clk 0:02:39]} 10. Nf3 {[%clk 0:02:41]}  bxc5 {[%clk 0:02:35]} 11. bxc5 {[%clk 0:02:42]}  Bxc5 {[%clk 0:02:34]} 12. O-O {[%clk 0:02:40]}  Ne4 {[%clk 0:02:34]} 13. Bf4 {[%clk 0:02:36]}  O-O {[%clk 0:02:34]} 14. Nbd2 {[%clk 0:02:22]}  Nxd2 {[%clk 0:02:31]} 15. Qxd2 {[%clk 0:02:18]}  Nc6 {[%clk 0:02:30]} 16. Rfc1 {[%clk 0:02:16]}  Bb6 {[%clk 0:02:19]} 17. Ne5 {[%clk 0:02:13]}  Nxe5 {[%clk 0:02:15]} 18. Bxe5 {[%clk 0:02:14]}  Rfc8 {[%clk 0:02:14]} 19. Rxc8+ {[%clk 0:02:06]}  Rxc8 {[%clk 0:02:13]} 20. Bd4 {[%clk 0:02:04]}  Bxd4 {[%clk 0:02:08]} 21. Qxd4 {[%clk 0:02:03]}  h6 {[%clk 0:02:04]} 22. g3 {[%clk 0:02:02]}  Rc4 {[%clk 0:02:04]} 23. Qb6 {[%clk 0:01:54]}  Rc6 {[%clk 0:01:38]} 24. Qb8+ {[%clk 0:01:48]}  Rc8 {[%clk 0:01:38]} 25. Qb3 {[%clk 0:01:44]}  Qa7 {[%clk 0:01:31]} 26. a4 {[%clk 0:01:39]}  Qa5 {[%clk 0:01:30]} 27. Qb5 {[%clk 0:01:20]}  Ra8 {[%clk 0:01:15]} 28. Qxa5 {[%clk 0:01:19]}  Rxa5 {[%clk 0:01:15]} 29. Kf1 {[%clk 0:01:19]}  Kf8 {[%clk 0:01:15]} 30. Ke2 {[%clk 0:01:18]}  Ke7 {[%clk 0:01:15]} 31. Kd3 {[%clk 0:01:18]}  Kd6 {[%clk 0:01:16]} 32. e4 {[%clk 0:01:05]}  dxe4+ {[%clk 0:01:14]} 33. Kxe4 {[%clk 0:01:04]}  Kc5 {[%clk 0:01:10]} 34. Rc1+ {[%clk 0:00:52]}  Kd6 {[%clk 0:01:06]} 35. Ra1 {[%clk 0:00:50]}  g6 {[%clk 0:01:06]} 36. f4 {[%clk 0:00:49]}  Kc5 {[%clk 0:01:00]} 37. Rc1+ {[%clk 0:00:46]}  Kb6 {[%clk 0:01:00]} 38. Rb1+ {[%clk 0:00:44]}  Ka6 {[%clk 0:01:00]} 39. Ra1 {[%clk 0:00:43]}  Rc5 {[%clk 0:01:00]} 40. h4 {[%clk 0:00:36]}  Rc3 {[%clk 0:00:53]} 41. g4 {[%clk 0:00:34]}  Rh3 {[%clk 0:00:53]} 42. g5 {[%clk 0:00:19]}  Rxh4 {[%clk 0:00:52]} 43. gxh6 {[%clk 0:00:19]}  Rxh6 {[%clk 0:00:51]} 44. Rc1 {[%clk 0:00:17]}  Rh4 {[%clk 0:00:50]} 45. Rc7 {[%clk 0:00:14]}  Rh7 {[%clk 0:00:41]} 46. Ke5 {[%clk 0:00:14]}  f6+ {[%clk 0:00:41]} 47. Kd6 {[%clk 0:00:12]}  Rxc7 {[%clk 0:00:40]} 48. Kxc7 {[%clk 0:00:12]}  e5 {[%clk 0:00:41]} 0-1


[Site "https://www.chess.com"]

[Event "Titled Tuesday Blitz February 28 Early 2023"]
[White "Schroeder, Jan-Christian"]
[Black "Kalaiyalahan, Akshaya"]
[WhiteFideId "24662259"]
[BlackFideId "422894"]
[WhiteElo "2556"]
[BlackElo "2043"]
[Result "1-0"]
[Round "07"]
[TimeControl "180+2"]
[Date "2023.02.28"]
[WhiteClock "0:01:41"]
[BlackClock "0:00:14"]

1. Nf3 {[%clk 0:03:00]}  Nf6 {[%clk 0:02:55]} 2. g3 {[%clk 0:03:01]}  b6 {[%clk 0:02:53]} 3. Bg2 {[%clk 0:03:01]}  Bb7 {[%clk 0:02:53]} 4. O-O {[%clk 0:03:02]}  e6 {[%clk 0:02:53]} 5. c4 {[%clk 0:03:03]}  Be7 {[%clk 0:02:48]} 6. d4 {[%clk 0:03:02]}  O-O {[%clk 0:02:47]} 7. b3 {[%clk 0:02:59]}  Ne4 {[%clk 0:02:44]} 8. Bb2 {[%clk 0:02:59]}  d6 {[%clk 0:02:43]} 9. Nfd2 {[%clk 0:02:57]}  f5 {[%clk 0:02:35]} 10. Qc2 {[%clk 0:02:43]}  d5 {[%clk 0:02:28]} 11. Nc3 {[%clk 0:02:42]}  Nd7 {[%clk 0:02:22]} 12. Rac1 {[%clk 0:02:33]}  c6 {[%clk 0:02:17]} 13. Nf3 {[%clk 0:02:14]}  Bd6 {[%clk 0:02:05]} 14. e3 {[%clk 0:02:13]}  g5 {[%clk 0:02:00]} 15. Ne2 {[%clk 0:02:13]}  Qf6 {[%clk 0:01:54]} 16. Ne1 {[%clk 0:02:13]}  g4 {[%clk 0:01:44]} 17. Nf4 {[%clk 0:02:12]}  Bxf4 {[%clk 0:01:31]} 18. exf4 {[%clk 0:02:11]}  Rac8 {[%clk 0:01:25]} 19. f3 {[%clk 0:02:10]}  gxf3 {[%clk 0:01:24]} 20. Nxf3 {[%clk 0:02:11]}  Ba6 {[%clk 0:01:09]} 21. a4 {[%clk 0:02:00]}  Kh8 {[%clk 0:01:02]} 22. Qe2 {[%clk 0:01:57]}  Rg8 {[%clk 0:00:59]} 23. Qe3 {[%clk 0:01:52]}  Rg6 {[%clk 0:00:56]} 24. Ne5 {[%clk 0:01:44]}  Nxe5 {[%clk 0:00:49]} 25. dxe5 {[%clk 0:01:42]}  Qe7 {[%clk 0:00:45]} 26. Bxe4 {[%clk 0:01:43]}  dxe4 {[%clk 0:00:32]} 27. Rfd1 {[%clk 0:01:43]}  Rgg8 {[%clk 0:00:24]} 28. Rd6 {[%clk 0:01:43]}  Rgd8 {[%clk 0:00:23]} 29. Rcd1 {[%clk 0:01:42]}  b5 {[%clk 0:00:15]} 30. Qd4 {[%clk 0:01:41]}  bxc4 {[%clk 0:00:14]} 31. Rxd8+ {[%clk 0:01:41]} 1-0


[Site "https://www.chess.com"]

[Event "Titled Tuesday Blitz February 28 Early 2023"]
[White "Gritsenko, Nikolai"]
[Black "parintele_chess"]
[WhiteFideId "14112493"]
[WhiteElo "2389"]
[BlackElo "2235"]
[Result "1-0"]
[Round "07"]
[TimeControl "180+2"]
[Date "2023.02.28"]
[WhiteClock "0:00:08"]
[BlackClock "0:00:03"]

1. e4 {[%clk 0:03:00]}  c6 {[%clk 0:02:58]} 2. d4 {[%clk 0:02:55]}  d5 {[%clk 0:02:58]} 3. f3 {[%clk 0:02:55]}  e5 {[%clk 0:02:51]} 4. dxe5 {[%clk 0:02:51]}  d4 {[%clk 0:02:48]} 5. Nd2 {[%clk 0:02:36]}  c5 {[%clk 0:02:42]} 6. f4 {[%clk 0:02:35]}  Nc6 {[%clk 0:02:41]} 7. Ngf3 {[%clk 0:02:34]}  f6 {[%clk 0:02:41]} 8. exf6 {[%clk 0:02:28]}  Nxf6 {[%clk 0:02:42]} 9. Bc4 {[%clk 0:02:16]}  Bg4 {[%clk 0:02:24]} 10. O-O {[%clk 0:02:13]}  Qd7 {[%clk 0:02:20]} 11. h3 {[%clk 0:02:04]}  Bxf3 {[%clk 0:02:18]} 12. Qxf3 {[%clk 0:02:03]}  O-O-O {[%clk 0:02:17]} 13. a3 {[%clk 0:01:52]}  h5 {[%clk 0:02:13]} 14. Nb3 {[%clk 0:01:29]}  h4 {[%clk 0:02:04]} 15. Bd2 {[%clk 0:01:27]}  Nh5 {[%clk 0:02:01]} 16. Rae1 {[%clk 0:01:13]}  Ng3 {[%clk 0:02:00]} 17. Rf2 {[%clk 0:01:13]}  Bd6 {[%clk 0:01:47]} 18. e5 {[%clk 0:01:12]}  Be7 {[%clk 0:01:46]} 19. Na5 {[%clk 0:01:10]}  Nxa5 {[%clk 0:01:01]} 20. Bxa5 {[%clk 0:01:09]}  Rdf8 {[%clk 0:01:01]} 21. Qg4 {[%clk 0:00:59]}  Qxg4 {[%clk 0:01:01]} 22. hxg4 {[%clk 0:00:59]}  b6 {[%clk 0:00:54]} 23. Bd2 {[%clk 0:00:57]}  h3 {[%clk 0:00:50]} 24. gxh3 {[%clk 0:00:55]}  Rxh3 {[%clk 0:00:51]} 25. Be6+ {[%clk 0:00:54]}  Kc7 {[%clk 0:00:51]} 26. g5 {[%clk 0:00:52]}  Rh1+ {[%clk 0:00:45]} 27. Kg2 {[%clk 0:00:51]}  Rxe1 {[%clk 0:00:42]} 28. Bxe1 {[%clk 0:00:51]}  Ne4 {[%clk 0:00:37]} 29. Rf3 {[%clk 0:00:45]}  Bxg5 {[%clk 0:00:36]} 30. Bd5 {[%clk 0:00:41]}  Rxf4 {[%clk 0:00:26]} 31. Rxf4 {[%clk 0:00:40]}  Bxf4 {[%clk 0:00:27]} 32. Bxe4 {[%clk 0:00:40]}  Bxe5 {[%clk 0:00:28]} 33. Bd3 {[%clk 0:00:38]}  Kc6 {[%clk 0:00:24]} 34. a4 {[%clk 0:00:37]}  Kd5 {[%clk 0:00:16]} 35. b3 {[%clk 0:00:37]}  Kc6 {[%clk 0:00:14]} 36. Kf3 {[%clk 0:00:36]}  Kb7 {[%clk 0:00:13]} 37. Ke4 {[%clk 0:00:36]}  Bc7 {[%clk 0:00:13]} 38. Kd5 {[%clk 0:00:31]}  a6 {[%clk 0:00:13]} 39. Bh4 {[%clk 0:00:29]}  Bh2 {[%clk 0:00:08]} 40. Ke6 {[%clk 0:00:24]}  Kc6 {[%clk 0:00:07]} 41. Bxa6 {[%clk 0:00:21]}  Bf4 {[%clk 0:00:05]} 42. Kf5 {[%clk 0:00:18]}  Be3 {[%clk 0:00:05]} 43. Bc4 {[%clk 0:00:17]}  Kd6 {[%clk 0:00:05]} 44. Kg6 {[%clk 0:00:16]}  Kc7 {[%clk 0:00:02]} 45. Bg3+ {[%clk 0:00:16]}  Kb7 {[%clk 0:00:02]} 46. Kxg7 {[%clk 0:00:15]}  Ka7 {[%clk 0:00:01]} 47. Kf7 {[%clk 0:00:15]}  Kb7 {[%clk 0:00:01]} 48. Ke6 {[%clk 0:00:15]}  Ka7 {[%clk 0:00:02]} 49. Kd7 {[%clk 0:00:14]}  Bd2 {[%clk 0:00:03]} 50. Kc6 {[%clk 0:00:14]}  Ba5 {[%clk 0:00:03]} 51. Bc7 {[%clk 0:00:13]}  Ka8 {[%clk 0:00:03]} 52. Bxb6 {[%clk 0:00:10]}  Bc3 {[%clk 0:00:03]} 53. Kc7 {[%clk 0:00:08]} 1-0


[Site "https://www.chess.com"]

[Event "Titled Tuesday Blitz February 28 Early 2023"]
[White "Hartikainen, Jarmo"]
[Black "mohsengabr2002"]
[WhiteFideId "503134"]
[WhiteElo "2195"]
[BlackElo "2400"]
[Result "0-1"]
[Round "07"]
[TimeControl "180+2"]
[Date "2023.02.28"]
[WhiteClock "0:02:11"]
[BlackClock "0:02:51"]

1. e4 {[%clk 0:03:00]}  c5 {[%clk 0:02:59]} 2. c3 {[%clk 0:03:01]}  g6 {[%clk 0:02:58]} 3. d4 {[%clk 0:03:00]}  cxd4 {[%clk 0:02:59]} 4. cxd4 {[%clk 0:03:01]}  Bg7 {[%clk 0:02:59]} 5. Be3 {[%clk 0:03:01]}  d5 {[%clk 0:02:59]} 6. f3 {[%clk 0:02:57]}  dxe4 {[%clk 0:02:54]} 7. fxe4 {[%clk 0:02:56]}  Nf6 {[%clk 0:02:55]} 8. Nc3 {[%clk 0:02:48]}  Ng4 {[%clk 0:02:54]} 9. Bb5+ {[%clk 0:02:34]}  Nc6 {[%clk 0:02:53]} 10. Nd5 {[%clk 0:02:11]}  Nxe3 {[%clk 0:02:51]} 11. Nxe3 {[%clk 0:02:11]}  Qa5+ {[%clk 0:02:51]} 0-1


[Site "https://www.chess.com"]

[Event "Titled Tuesday Blitz February 28 Early 2023"]
[White "Tiarks, Jann-Christian"]
[Black "Fernandez Hernandez, Gerardo"]
[WhiteFideId "12951595"]
[BlackFideId "2207400"]
[WhiteElo "2194"]
[BlackElo "2195"]
[Result "1-0"]
[Round "07"]
[TimeControl "180+2"]
[Date "2023.02.28"]
[WhiteClock "0:00:11"]
[BlackClock "0:00:01"]

1. e4 {[%clk 0:03:00]}  e6 {[%clk 0:02:57]} 2. d3 {[%clk 0:02:59]}  d5 {[%clk 0:02:58]} 3. Nd2 {[%clk 0:03:00]}  Nf6 {[%clk 0:02:58]} 4. Ngf3 {[%clk 0:02:59]}  Nc6 {[%clk 0:02:54]} 5. g3 {[%clk 0:02:50]}  dxe4 {[%clk 0:02:52]} 6. dxe4 {[%clk 0:02:49]}  e5 {[%clk 0:02:52]} 7. Bg2 {[%clk 0:02:47]}  Bc5 {[%clk 0:02:52]} 8. O-O {[%clk 0:02:46]}  O-O {[%clk 0:02:49]} 9. c3 {[%clk 0:02:47]}  a5 {[%clk 0:02:49]} 10. Qc2 {[%clk 0:02:41]}  Qe7 {[%clk 0:02:36]} 11. Nc4 {[%clk 0:02:36]}  b5 {[%clk 0:01:56]} 12. Ne3 {[%clk 0:02:32]}  Ba6 {[%clk 0:01:48]} 13. Nf5 {[%clk 0:02:27]}  Qe8 {[%clk 0:01:28]} 14. Rd1 {[%clk 0:02:20]}  Rd8 {[%clk 0:01:21]} 15. Bg5 {[%clk 0:02:16]}  Qe6 {[%clk 0:01:17]} 16. Bh3 {[%clk 0:02:07]}  Kh8 {[%clk 0:01:04]} 17. Kg2 {[%clk 0:02:07]}  Qe8 {[%clk 0:00:39]} 18. N3h4 {[%clk 0:01:58]}  Bc8 {[%clk 0:00:35]} 19. Qe2 {[%clk 0:01:50]}  b4 {[%clk 0:00:31]} 20. Nxg7 {[%clk 0:01:35]}  Kxg7 {[%clk 0:00:28]} 21. Bxc8 {[%clk 0:01:35]}  Rxd1 {[%clk 0:00:18]} 22. Rxd1 {[%clk 0:01:30]}  Qxc8 {[%clk 0:00:17]} 23. Nf5+ {[%clk 0:01:31]}  Kg6 {[%clk 0:00:12]} 24. h4 {[%clk 0:01:20]}  Ne7 {[%clk 0:00:10]} 25. f4 {[%clk 0:00:20]}  Nxf5 {[%clk 0:00:03]} 26. h5+ {[%clk 0:00:15]}  Nxh5 {[%clk 0:00:03]} 27. exf5+ {[%clk 0:00:13]}  Qxf5 {[%clk 0:00:04]} 28. Rh1 {[%clk 0:00:12]}  Ng7 {[%clk 0:00:01]} 29. Rh6# {[%clk 0:00:11]} 1-0


[Site "https://www.chess.com"]

[Event "Titled Tuesday Blitz February 28 Early 2023"]
[White "Manon-og, Ramon Jr."]
[Black "Kiseljova, Marya"]
[WhiteFideId "5200776"]
[BlackFideId "4155009"]
[WhiteElo "2323"]
[BlackElo "1807"]
[Result "1-0"]
[Round "07"]
[TimeControl "180+2"]
[Date "2023.02.28"]
[WhiteClock "0:00:53"]
[BlackClock "0:00:19"]

1. e4 {[%clk 0:03:00]}  c5 {[%clk 0:02:57]} 2. Nf3 {[%clk 0:03:01]}  Nc6 {[%clk 0:02:56]} 3. Bb5 {[%clk 0:02:58]}  e5 {[%clk 0:02:56]} 4. Bxc6 {[%clk 0:02:55]}  dxc6 {[%clk 0:02:57]} 5. O-O {[%clk 0:02:53]}  Bd6 {[%clk 0:02:56]} 6. d3 {[%clk 0:02:53]}  Ne7 {[%clk 0:02:55]} 7. h3 {[%clk 0:02:53]}  O-O {[%clk 0:02:54]} 8. Bg5 {[%clk 0:02:53]}  f6 {[%clk 0:02:54]} 9. Be3 {[%clk 0:02:52]}  Ng6 {[%clk 0:02:52]} 10. Nbd2 {[%clk 0:02:51]}  b6 {[%clk 0:02:50]} 11. a4 {[%clk 0:02:47]}  a5 {[%clk 0:02:47]} 12. Nc4 {[%clk 0:02:45]}  Bc7 {[%clk 0:02:48]} 13. c3 {[%clk 0:02:44]}  Be6 {[%clk 0:02:45]} 14. b3 {[%clk 0:02:39]}  Qd7 {[%clk 0:02:39]} 15. d4 {[%clk 0:02:39]}  cxd4 {[%clk 0:02:32]} 16. cxd4 {[%clk 0:02:40]}  exd4 {[%clk 0:02:22]} 17. Qxd4 {[%clk 0:02:36]}  Qxd4 {[%clk 0:02:21]} 18. Nxd4 {[%clk 0:02:37]}  Bxc4 {[%clk 0:02:13]} 19. bxc4 {[%clk 0:02:37]}  Ne5 {[%clk 0:01:59]} 20. Bf4 {[%clk 0:02:29]}  Nf3+ {[%clk 0:01:50]} 21. gxf3 {[%clk 0:02:30]}  Bxf4 {[%clk 0:01:50]} 22. Nxc6 {[%clk 0:02:30]}  Rf7 {[%clk 0:01:39]} 23. Rab1 {[%clk 0:02:29]}  Rc8 {[%clk 0:01:30]} 24. Rxb6 {[%clk 0:02:27]}  Rfc7 {[%clk 0:01:30]} 25. Nxa5 {[%clk 0:02:27]}  Rc5 {[%clk 0:01:21]} 26. Rb5 {[%clk 0:02:25]}  R5c7 {[%clk 0:01:18]} 27. Rd1 {[%clk 0:02:16]}  Kf7 {[%clk 0:01:14]} 28. Kg2 {[%clk 0:02:10]}  Ra8 {[%clk 0:01:05]} 29. c5 {[%clk 0:02:05]}  Rca7 {[%clk 0:01:00]} 30. Nc6 {[%clk 0:01:48]}  Rxa4 {[%clk 0:00:59]} 31. Nd8+ {[%clk 0:01:48]}  Kg6 {[%clk 0:00:55]} 32. Rb7 {[%clk 0:01:46]}  Ra2 {[%clk 0:00:32]} 33. Kg1 {[%clk 0:01:24]}  Rc2 {[%clk 0:00:28]} 34. Ne6 {[%clk 0:01:21]}  Be5 {[%clk 0:00:27]} 35. Rxg7+ {[%clk 0:01:20]}  Kh6 {[%clk 0:00:27]} 36. Rdd7 {[%clk 0:01:17]}  Ra1+ {[%clk 0:00:26]} 37. Kg2 {[%clk 0:01:17]}  f5 {[%clk 0:00:21]} 38. Rxh7+ {[%clk 0:01:12]}  Kg6 {[%clk 0:00:21]} 39. Nf8+ {[%clk 0:01:02]}  Kf6 {[%clk 0:00:20]} 40. h4 {[%clk 0:00:54]}  Raa2 {[%clk 0:00:19]} 41. Rdf7# {[%clk 0:00:53]} 1-0


[Site "https://www.chess.com"]